bitfinex-derivatives/quotes_SOLF0:USTF0_20250909
["timestamp","ask_amount","ask_price","bid_price","bid_amount"]
[1757426049458,115.02,218.44,218.38,4.04391349]
[1757426049654,115.02,218.44,218.35,7.11]
[1757426049853,115.02,218.44,218.36,4.04393467]
[1757426050055,115.02,218.44,218.37,4.04393467]
[1757426050257,0.12,218.45,218.38,4.04393467]
[1757426050450,115.14,218.44,218.39,4.04429759]
[1757426050755,115.14,218.44,218.4,4.04429759]
[1757426050956,115.14,218.44,218.35,7.11]
[1757426051155,115.14,218.44,218.36,4.04213938]
[1757426051356,115.14,218.44,218.37,4.04213938]
[1757426051558,115.14,218.44,218.38,4.04213938]
[1757426051752,115.02,218.44,218.39,4.04213938]
[1757426051957,0.12,218.43,218.35,7.11]
[1757426052261,0.12,218.43,218.36,4.04353919]
[1757426052561,0.12,218.43,218.37,4.04353919]
[1757426052753,0.12,218.43,218.38,4.04328905]
[1757426052957,0.12,218.43,218.32,7.11]
[1757426053157,0.12,218.43,218.34,10.92749004]
[1757426053352,3.81749004,218.46,218.36,7.11]
[1757426053663,115.0,218.45,218.37,4.04329814]
[1757426053866,115.0,218.45,218.38,4.04329814]
[1757426054061,115.0,218.45,218.39,4.04329814]
[1757426054262,115.0,218.45,218.36,7.11]
[1757426054462,115.0,218.45,218.37,4.04305087]
[1757426054662,115.0,218.45,218.38,4.04305087]
[1757426054962,115.0,218.45,218.39,4.04305087]
[1757426055164,115.0,218.45,218.36,7.11]
[1757426055354,115.0,218.45,218.37,4.04300389]
[1757426055562,115.0,218.45,218.38,4.04300389]
[1757426055859,115.0,218.45,218.39,4.04300389]
[1757426056159,0.14,218.45,218.4,4.04284792]
[1757426056366,0.14,218.45,218.37,7.74]
[1757426056663,0.14,218.45,218.38,4.04299493]
[1757426056863,0.14,218.45,218.39,4.04299493]
[1757426057062,0.14,218.43,218.32,7.74]
[1757426057254,0.14,218.43,218.33,4.04552173]
[1757426057564,0.14,218.43,218.34,4.04552173]
[1757426057864,0.14,218.43,218.32,7.74]
[1757426057865,0.14,218.43,218.35,4.04552173]
[1757426058163,0.14,218.43,218.36,4.04528872]
[1757426058361,3.81749004,218.41,218.32,7.74]
[1757426058662,3.81749004,218.41,218.33,4.04406235]
[1757426058862,3.81749004,218.42,218.34,4.04406235]
[1757426059064,3.81749004,218.42,218.35,4.04406235]
[1757426059266,3.81749004,218.42,218.36,4.04406235]
[1757426059466,3.81749004,218.42,218.32,7.74]
[1757426059655,3.81749004,218.42,218.33,4.04538308]
[1757426059863,3.81749004,218.41,218.34,4.04538308]
[1757426060061,3.95749004,218.41,218.35,4.04538308]
[1757426060262,3.95749004,218.41,218.32,7.74]
[1757426060466,2.44424574,218.37,218.34,7.74]
[1757426060661,2.44424574,218.37,218.35,4.0476804]
[1757426060861,115.0,218.46,218.29,2.44424574]
[1757426060862,0.14,218.39,218.29,7.74]
[1757426061164,2.44424574,218.36,218.3,4.04749779]
[1757426061359,2.44424574,218.36,218.31,4.04749779]
[1757426061560,2.44424574,218.36,218.33,7.74]
[1757426061755,0.14,218.39,218.34,4.04749779]
[1757426061954,2.44424574,218.37,218.35,11.7875262]
[1757426062154,2.44424574,218.37,218.36,4.04858895]
[1757426062462,2.44424574,218.37,218.33,7.74]
[1757426062661,2.44424574,218.37,218.35,7.74]
[1757426063066,2.44424574,218.39,218.35,7.74]
[1757426063365,2.44424574,218.39,218.32,7.74]
[1757426063565,2.44424574,218.39,218.33,4.04952847]
[1757426063765,2.44424574,218.39,218.35,7.74]
[1757426064065,2.44424574,218.39,218.32,7.74]
[1757426064266,2.44424574,218.39,218.33,4.05041507]
[1757426064460,2.44424574,218.39,218.35,7.74]
[1757426064763,2.44424574,218.39,218.36,11.79041507]
[1757426064965,0.14,218.47,218.37,11.7899519]
[1757426065162,333.24346428,218.58,218.38,4.04912692]
[1757426065163,2.58424574,218.4,218.38,4.04912692]
[1757426065361,2.58424574,218.4,218.34,7.74]
[1757426065559,2.58424574,218.4,218.35,11.79031621]
[1757426065761,2.58424574,218.4,218.36,4.05031621]
[1757426065956,2.58424574,218.4,218.35,7.74]
[1757426066158,0.14,218.39,218.35,7.74]
[1757426066665,2.44424574,218.38,218.35,7.74]
[1757426066865,0.14,218.39,218.35,7.74]
[1757426067066,2.44424574,218.38,218.35,7.74]
[1757426067469,2.44424574,218.38,218.3,7.74]
[1757426068560,2.44424574,218.4,218.31,2.44424574]
[1757426068866,2.44424574,218.4,218.32,7.74]
[1757426069556,2.44424574,218.39,218.32,7.74]
[1757426070766,0.14,218.36,218.28,7.74]
[1757426070962,2.44424574,218.35,218.28,7.74]
[1757426071157,2.44424574,218.31,218.22,7.74]
[1757426071364,2.44424574,218.27,218.22,7.74]
[1757426071564,2.44424574,218.25,218.18,7.74]
[1757426071759,2.44424574,218.23,218.15,10.18424574]
[1757426072068,2.44424574,218.23,218.16,7.74]
[1757426072267,0.02976048,218.21,218.11,3.78672037]
[1757426072463,0.02976048,218.21,218.16,7.74]
[1757426073161,0.02976048,218.21,218.15,7.74]
[1757426074768,2.47400622,218.21,218.15,7.74]
[1757426078771,0.02976048,218.21,218.15,7.74]
[1757426079965,2.44424574,218.2,218.12,7.74]
[1757426080465,2.44424574,218.2,218.14,7.74]
[1757426080770,2.44424574,218.22,218.14,7.74]
[1757426083072,2.44424574,218.29,218.2,7.74]
[1757426083268,2.44424574,218.29,218.21,2.44424574]
[1757426084867,2.44424574,218.29,218.2,7.74]
[1757426085572,2.44424574,218.27,218.2,7.74]
[1757426087975,2.44424574,218.25,218.2,7.74]
[1757426088277,0.14,218.24,218.2,7.74]
[1757426088480,2.44424574,218.23,218.15,7.53]
[1757426092684,307.9,218.34,218.16,2.44424574]
[1757426092886,2.44424574,218.26,218.17,7.53]
[1757426093681,2.44424574,218.24,218.17,7.53]
[1757426094387,2.44424574,218.22,218.13,7.53]
[1757426094585,2.44424574,218.22,218.15,7.53]
[1757426094783,2.44424574,218.2,218.15,7.53]
[1757426094984,2.58424574,218.2,218.12,2.44424574]
[1757426095184,2.58424574,218.2,218.13,7.53]
[1757426095982,2.44424574,218.2,218.13,7.53]
[1757426096988,2.44424574,218.22,218.13,7.53]
[1757426097488,2.44424574,218.22,218.14,7.53]
[1757426097788,2.44424574,218.2,218.14,7.53]
[1757426100681,2.44424574,218.16,218.1,7.53]
[1757426101082,0.14,218.2,218.1,7.53]
[1757426101286,2.44424574,218.19,218.12,7.53]
[1757426101487,2.44424574,218.19,218.11,2.44424574]
[1757426101488,2.44424574,218.17,218.07,7.53]
[1757426101693,2.44424574,218.17,218.08,7.53]
[1757426102891,2.44424574,218.13,218.0,7.53]
[1757426103192,28.6,218.24,218.08,7.53]
[1757426103395,2.44424574,218.16,218.08,7.53]
[1757426103881,0.14,218.19,218.08,7.53]
[1757426104192,2.44424574,218.17,218.08,7.53]
[1757426104492,0.14,218.19,218.1,7.53]
[1757426104686,2.44424574,218.17,218.1,7.53]
[1757426105190,0.14,218.19,218.1,7.53]
[1757426105400,2.44424574,218.17,218.1,7.53]
[1757426105586,5.12173214,218.3,218.1,7.53]
[1757426105587,2.44424574,218.18,218.11,7.53]
[1757426109096,2.44424574,218.16,218.11,7.53]
[1757426109289,2.44424574,218.16,218.09,7.53]
[1757426109588,2.44424574,218.18,218.11,7.53]
[1757426110893,2.44424574,218.16,218.07,9.97424574]
[1757426111092,2.44424574,218.16,218.08,7.53]
[1757426112894,2.44424574,218.14,218.08,7.53]
[1757426113399,2.44424574,218.15,218.08,7.53]
[1757426114194,2.44424574,218.16,218.08,7.53]
[1757426114389,2.44424574,218.19,218.1,7.73]
[1757426114595,2.44424574,218.19,218.12,7.73]
[1757426114791,2.58424574,218.17,218.12,7.73]
[1757426115399,0.14,218.16,218.08,2.44424574]
[1757426115699,2.44424574,218.15,218.09,7.73]
[1757426115900,2.44424574,218.14,218.06,7.73]
[1757426118101,2.44424574,218.14,218.06,11.8567]
[1757426118301,2.44424574,218.14,218.06,7.73]
[1757426119406,0.14,218.16,218.06,7.73]
[1757426119605,2.44424574,218.13,218.06,7.73]
[1757426120404,0.14,218.16,218.06,7.73]
[1757426123917,3.82679948,218.14,218.06,7.73]
[1757426124219,0.14,218.13,218.06,7.73]
[1757426125720,3.82679948,218.14,218.06,7.73]
[1757426126318,0.14,218.13,218.06,7.73]
[1757426131623,3.82679948,218.08,218.02,7.73]
[1757426135625,5.8,218.07,217.95,3.78681659]
[1757426135825,3.82679948,217.99,217.92,7.73]
[1757426136623,3.82679948,218.02,217.92,7.73]
[1757426136827,0.14,218.05,217.92,7.73]
[1757426137326,7.04,218.1,217.93,7.73]
[1757426137530,3.82679948,218.08,217.94,7.73]
[1757426137723,0.14,218.1,217.94,7.73]
[1757426137927,3.96679948,218.1,217.94,7.73]
[1757426138425,3.96679948,218.1,217.95,4.1287]
[1757426138630,3.96679948,218.1,217.96,7.73]
[1757426139028,3.82679948,218.07,217.96,7.73]
[1757426139226,0.14,218.07,217.96,7.73]
[1757426139525,3.82679948,218.06,217.96,7.73]
[1757426140724,0.14,218.07,217.96,7.73]
[1757426140929,3.96679948,218.07,217.96,7.73]
[1757426141732,0.14,218.07,217.96,7.73]
[1757426142832,0.14,218.11,217.96,7.73]
[1757426143134,3.82679948,218.1,217.96,7.73]
[1757426143434,0.14,218.15,217.98,7.73]
[1757426143641,3.82679948,218.13,217.99,7.27]
[1757426143934,0.13,218.12,217.99,7.27]
[1757426144532,3.95679948,218.12,217.99,7.27]
[1757426145329,0.13,218.12,217.99,4.128]
[1757426145526,0.13,218.12,218.0,7.27]
[1757426149236,0.13,218.18,218.04,7.27]
[1757426149436,0.13,218.18,218.05,7.27]
[1757426151532,0.13,218.18,218.03,3.82679948]
[1757426151533,3.82679948,218.21,218.07,7.27]
[1757426152132,3.82679948,218.21,218.08,7.27]
[1757426153140,3.82679948,218.18,218.08,7.27]
[1757426153433,0.13,218.17,218.08,7.27]
[1757426153633,3.82679948,218.15,218.08,7.27]
[1757426156138,0.13,218.17,218.08,7.27]
[1757426157340,3.82679948,218.2,218.08,7.27]
[1757426159442,3.95679948,218.21,218.08,7.27]
[1757426160750,0.13,218.21,218.08,7.27]
[1757426160947,3.95679948,218.21,218.08,7.27]
[1757426161348,312.11679948,218.24,218.09,3.82679948]
[1757426161545,0.13,218.23,218.1,7.27]
[1757426161744,206.06573393,218.25,218.1,7.27]
[1757426161944,3.82679948,218.27,218.13,7.27]
[1757426161945,3.95679948,218.27,218.13,7.27]
[1757426162550,0.13,218.27,218.13,7.27]
[1757426163449,9.07853162,218.31,218.15,3.82679948]
[1757426163648,3.95679948,218.31,218.16,7.27]
[1757426164243,0.13,218.3,218.16,7.27]
[1757426166655,0.13,218.3,218.18,7.27]
[1757426167043,3.95679948,218.35,218.21,7.27]
[1757426167952,3.82679948,218.34,218.21,7.27]
[1757426168254,0.13,218.33,218.21,7.27]
[1757426168447,0.13,218.3,218.21,7.27]
[1757426168653,0.13,218.27,218.21,7.27]
[1757426170846,0.13,218.27,218.06,119.00854535]
[1757426171051,3.82679948,218.25,218.11,7.27]
[1757426171353,3.82679948,218.25,218.11,4.1256]
[1757426171648,3.82679948,218.25,218.12,7.27]
[1757426172753,3.82679948,218.19,218.12,7.27]
[1757426174959,0.13,218.21,218.12,7.27]
[1757426175256,3.82679948,218.19,218.12,7.27]
[1757426180257,3.96679948,218.16,218.12,7.27]
[1757426180456,3.82679948,218.16,218.06,7.73]
[1757426181257,3.96679948,218.17,218.06,7.73]
[1757426182361,2.44949289,218.13,218.06,7.73]
[1757426185165,2.44949289,218.15,218.06,7.73]
[1757426185663,0.14,218.21,218.08,7.73]
[1757426185866,2.44949289,218.18,218.1,7.73]
[1757426190164,0.14,218.21,218.1,7.73]
[1757426190363,2.44949289,218.21,218.14,7.73]
[1757426191066,2.44949289,218.19,218.12,7.73]
[1757426193270,2.44949289,218.2,218.12,7.73]
[1757426196470,0.14,218.23,218.12,2.44949289]
[1757426196675,2.44949289,218.21,218.13,7.73]
[1757426199170,2.44949289,218.23,218.15,7.73]
[1757426199363,2.44949289,218.23,218.16,2.44949289]
[1757426199563,2.44949289,218.23,218.17,7.73]
[1757426202473,0.14,218.26,218.17,7.73]
[1757426202672,2.44949289,218.24,218.17,7.73]
[1757426202873,2.44949289,218.22,218.17,7.73]
[1757426203077,2.44949289,218.22,218.15,7.73]
[1757426206176,5.12173214,218.27,218.15,7.73]
[1757426206177,2.44949289,218.2,218.15,7.73]
[1757426206379,2.60949289,218.18,218.15,7.73]
[1757426206676,2.44949289,218.18,218.11,7.47]
[1757426206972,2.44949289,218.2,218.13,7.47]
[1757426207366,2.44949289,218.23,218.15,7.47]
[1757426207975,2.44949289,218.24,218.15,7.47]
[1757426208474,0.16,218.26,218.15,7.47]
[1757426208669,2.44949289,218.24,218.15,7.47]
[1757426208873,2.44949289,218.25,218.17,7.47]
[1757426211974,2.44949289,218.24,218.17,7.47]
[1757426212273,5.12173214,218.29,218.21,7.47]
[1757426212482,2.60949289,218.3,218.21,7.47]
[1757426212979,2.60949289,218.3,218.22,2.44949289]
[1757426213181,2.60949289,218.3,218.23,7.47]
[1757426217786,2.44949289,218.26,218.23,7.47]
[1757426217985,2.44949289,218.26,218.2,7.47]
[1757426218485,0.16,218.29,218.2,7.47]
[1757426218686,2.44949289,218.26,218.2,7.47]
[1757426219688,2.44949289,218.28,218.2,7.47]
[1757426220486,0.16,218.29,218.18,7.47]
[1757426220690,2.44949289,218.28,218.2,7.47]
[1757426220886,2.44949289,218.28,218.21,7.47]
[1757426221888,2.60949289,218.26,218.18,2.44949289]
[1757426222087,2.60949289,218.26,218.19,7.47]
[1757426222683,2.44949289,218.26,218.19,7.47]
[1757426223996,2.60949289,218.26,218.19,7.47]
[1757426224199,2.44949289,218.24,218.16,7.47]
[1757426226492,2.44949289,218.24,218.15,2.44949289]
[1757426226493,2.60949289,218.26,218.18,7.47]
[1757426227187,2.44949289,218.27,218.18,7.47]
[1757426228387,2.44949289,218.27,218.2,7.47]
[1757426230093,2.44949289,218.28,218.2,7.47]
[1757426230803,2.44949289,218.3,218.22,7.47]
[1757426231409,7.57122503,218.32,218.23,2.44949289]
[1757426231610,2.44949289,218.32,218.24,7.47]
[1757426234912,2.44949289,218.32,218.25,7.02]
[1757426235311,5.12173214,218.35,218.27,7.02]
[1757426235512,2.44949289,218.35,218.27,7.02]
[1757426236008,2.44949289,218.35,218.29,7.02]
[1757426236204,2.44949289,218.36,218.29,7.02]
[1757426237411,0.13,218.33,218.29,7.02]
[1757426237607,2.44949289,218.3,218.25,7.02]
[1757426237813,0.13,218.29,218.25,7.02]
[1757426238117,0.13,218.29,218.21,7.02]
[1757426238417,2.44949289,218.3,218.21,7.02]
[1757426238607,0.13,218.32,218.21,7.02]
[1757426238810,2.44949289,218.31,218.23,7.02]
[1757426240519,2.44949289,218.33,218.25,7.02]
[1757426240916,2.44949289,218.31,218.25,7.02]
[1757426243627,2.44949289,218.29,218.25,7.02]
[1757426243923,2.44949289,218.29,218.23,7.02]
[1757426244323,3.9517963,218.33,218.23,7.02]
[1757426245024,0.13,218.32,218.23,7.02]
[1757426245519,0.13,218.31,218.23,7.02]
[1757426245725,3.8217963,218.29,218.23,7.02]
[1757426246922,3.8217963,218.29,218.15,308.04]
[1757426247117,3.8217963,218.26,218.16,7.02]
[1757426247725,3.8217963,218.29,218.16,7.02]
[1757426248117,9.07352844,218.31,218.16,7.02]
[1757426248325,3.9517963,218.31,218.16,7.02]
[1757426249828,3.9517963,218.31,218.16,117.06]
[1757426250128,3.9517963,218.31,218.18,7.02]
[1757426251127,0.13,218.31,218.18,14.9660963]
[1757426251321,8.94352844,218.33,218.19,7.02]
[1757426251528,5.12173214,218.33,218.19,7.02]
[1757426251723,73.69173214,218.35,218.19,7.02]
[1757426252429,73.69173214,218.35,218.2,7.02]
[1757426253225,5.12173214,218.34,218.2,7.02]
[1757426253426,3.9517963,218.33,218.2,7.02]
[1757426253622,0.13,218.29,218.2,7.02]
[1757426253924,3.8217963,218.27,218.2,7.02]
[1757426254631,0.13,218.29,218.2,7.02]
[1757426257025,5.12173214,218.33,218.22,7.02]
[1757426257227,5.12173214,218.35,218.22,7.02]
[1757426257529,5.12173214,218.35,218.23,4.1234]
[1757426257723,5.12173214,218.35,218.24,7.02]
[1757426258330,5.12173214,218.36,218.24,7.02]
[1757426258730,172.92610751,218.37,218.25,4.1231]
[1757426258934,172.92610751,218.37,218.26,7.02]
[1757426259731,172.92610751,218.37,218.24,3.8217963]
[1757426259732,5.12173214,218.4,218.28,7.02]
[1757426259937,308.19,218.41,218.28,7.02]
[1757426260138,0.13,218.41,218.28,7.02]
[1757426260533,0.13,218.41,218.29,4.1222]
[1757426260734,0.13,218.41,218.3,7.02]
[1757426261437,3.9517963,218.41,218.3,7.02]
[1757426263236,0.13,218.41,218.3,7.02]
[1757426263441,3.9517963,218.41,218.3,7.02]
[1757426263843,9.07352844,218.41,218.3,7.02]
[1757426264737,0.12,218.4,218.3,7.02]
[1757426265440,8.94352844,218.41,218.3,7.02]
[1757426265743,0.12,218.39,218.3,7.02]
[1757426266540,5.12173214,218.4,218.3,7.02]
[1757426266541,0.12,218.37,218.3,7.02]
[1757426268948,3.8217963,218.35,218.23,7.51]
[1757426269143,0.12,218.37,218.23,7.51]
[1757426269448,3.8217963,218.35,218.23,7.51]
[1757426270543,0.12,218.34,218.23,7.51]
[1757426270748,3.8217963,218.32,218.23,7.51]
[1757426272452,3.9417963,218.32,218.23,7.51]
[1757426273857,3.8217963,218.33,218.23,7.51]
[1757426275155,3.9417963,218.33,218.23,7.51]
[1757426277754,5.12173214,218.35,218.23,7.51]
[1757426277955,3.8217963,218.3,218.23,7.51]
[1757426278861,3.8217963,218.27,218.14,7.51]
[1757426281364,3.8217963,218.27,218.14,4.1251]
[1757426281560,3.8217963,218.27,218.15,7.51]
[1757426282462,3.8217963,218.27,218.15,11.6349]
[1757426282765,3.8217963,218.27,218.16,7.51]
[1757426283462,3.8217963,218.27,218.17,7.51]
[1757426288267,0.12,218.28,218.17,7.51]
[1757426288466,3.8217963,218.27,218.18,4.1243]
[1757426288660,3.8217963,218.27,218.19,7.51]
[1757426289867,3.8217963,218.27,218.2,7.51]
[1757426290066,3.8217963,218.3,218.2,7.51]
[1757426290260,0.12,218.29,218.2,7.51]
[1757426290763,3.8217963,218.26,218.2,7.51]
[1757426290965,3.9417963,218.26,218.2,7.51]
[1757426291766,3.9417963,218.23,218.1,7.51]
[1757426292066,3.9417963,218.23,218.12,7.51]
[1757426292964,3.9417963,218.23,218.13,7.51]
[1757426293570,3.9417963,218.23,218.14,7.44]
[1757426294869,3.9417963,218.23,218.14,11.565]
[1757426295063,3.9417963,218.23,218.15,7.44]
[1757426295661,3.8217963,218.26,218.16,7.44]
[1757426296969,3.8217963,218.23,218.16,7.44]
[1757426302270,0.14,218.22,218.16,7.44]
[1757426304373,2.44815431,218.18,218.12,4.1254]
[1757426304575,2.44815431,218.18,218.13,7.44]
[1757426304776,2.44815431,218.18,218.12,4.1254]
[1757426304972,2.44815431,218.18,218.14,7.44]
[1757426305173,2.44815431,218.16,218.11,7.44]
[1757426305768,2.44815431,218.18,218.11,7.44]
[1757426305973,0.14,218.22,218.12,7.44]
[1757426306178,2.44815431,218.2,218.12,7.44]
[1757426306569,2.44815431,218.18,218.12,7.44]
[1757426313878,2.44815431,218.16,218.1,4.1258]
[1757426314279,2.44815431,218.16,218.11,7.44]
[1757426314983,2.44815431,218.16,218.1,4.1258]
[1757426315378,2.44815431,218.16,218.11,7.44]
[1757426315979,2.44815431,218.16,218.09,7.44]
[1757426316481,2.44815431,218.11,218.05,7.44]
[1757426320581,2.44815431,218.12,218.05,7.44]
[1757426323384,0.14,218.13,218.05,7.44]
[1757426323685,2.44815431,218.11,218.05,7.44]
[1757426324486,2.58815431,218.11,218.05,7.44]
[1757426325085,0.14,218.11,218.05,7.44]
[1757426325288,2.58815431,218.11,218.05,7.44]
[1757426326882,0.14,218.11,218.05,7.44]
[1757426328283,2.44815431,218.12,218.05,7.44]
[1757426329584,0.14,218.15,218.05,9.88815431]
[1757426329788,2.58815431,218.15,218.08,7.5]
[1757426331980,2.44815431,218.13,218.07,7.5]
[1757426335689,2.44815431,218.11,218.07,7.5]
[1757426335888,2.58815431,218.11,218.07,7.5]
[1757426336086,2.58815431,218.11,218.05,7.5]
[1757426337488,0.14,218.08,218.05,7.5]
[1757426337689,2.44815431,218.09,218.03,7.5]
[1757426338394,2.44815431,218.07,218.0,7.5]
[1757426340788,2.44815431,218.08,218.0,7.5]
[1757426341184,2.44815431,218.1,218.01,2.44815431]
[1757426341387,2.44815431,218.1,218.02,7.5]
[1757426341589,2.44815431,218.08,218.02,7.5]
[1757426344592,2.44815431,218.08,218.02,4.1274]
[1757426344794,2.44815431,218.08,218.03,7.5]
[1757426345494,2.44815431,218.08,218.02,4.1274]
[1757426345792,2.44815431,218.1,218.03,7.5]
[1757426345994,2.44815431,218.1,218.04,7.5]
[1757426346196,2.44815431,218.12,218.05,7.5]
[1757426346694,2.44815431,218.1,218.04,7.5]
[1757426347288,2.44815431,218.14,218.05,7.5]
[1757426347690,2.44815431,218.12,218.05,7.5]
[1757426350695,0.14,218.13,218.05,7.5]
[1757426350894,2.58815431,218.13,218.05,7.5]
[1757426352005,2.44815431,218.11,218.05,7.5]
[1757426355106,2.44815431,218.12,218.05,7.5]
[1757426358002,2.58815431,218.13,218.05,7.5]
[1757426359005,229.32175953,218.2,217.99,116.0]
[1757426359006,2.44815431,218.17,218.09,7.3]
[1757426359207,2.58815431,218.19,218.11,7.3]
[1757426359906,2.58815431,218.22,218.14,2.44815431]
[1757426360108,2.58815431,218.22,218.15,7.3]
[1757426360307,2.44815431,218.2,218.12,2.44815431]
[1757426360608,2.44815431,218.2,218.13,7.3]
[1757426362103,2.58815431,218.2,218.13,7.3]
[1757426366409,0.14,218.2,218.13,7.3]
[1757426372412,3.82554636,218.19,218.13,7.3]
[1757426375107,3.96554636,218.16,218.04,7.3]
[1757426375511,3.96554636,218.13,218.04,7.3]
[1757426381215,3.82554636,218.1,218.04,7.3]
[1757426381421,0.14,218.09,217.97,7.3]
[1757426382619,0.14,218.14,217.97,7.3]
[1757426383021,3.82554636,218.11,217.97,7.3]
[1757426385319,0.14,218.16,218.0,7.19]
[1757426387621,0.14,218.16,218.01,7.19]
[1757426388730,3.82554636,218.14,218.01,7.19]
[1757426388929,0.14,218.13,218.01,7.19]
[1757426390729,3.96554636,218.17,218.01,7.19]
[1757426391032,3.96554636,218.17,218.02,7.19]
[1757426392033,0.14,218.16,218.02,7.19]
[1757426393924,68.98554636,218.2,218.04,3.82554636]
[1757426394130,69.12554636,218.2,218.05,7.19]
[1757426397235,3.96554636,218.2,218.05,7.19]
[1757426399233,0.14,218.2,218.07,3.82554636]
[1757426399538,0.14,218.2,218.08,7.19]
[1757426400238,3.82554636,218.22,218.08,7.19]
[1757426400439,115.84,218.24,218.11,7.19]
[1757426400633,0.14,218.27,218.11,7.19]
[1757426401338,0.14,218.27,218.13,3.82554636]
[1757426401535,0.14,218.36,218.2,7.19]
[1757426401742,3.82554636,218.39,218.23,7.19]
[1757426401934,0.14,218.4,218.26,7.19]
[1757426402131,0.14,218.4,218.28,3.82554636]
[1757426402437,3.96554636,218.44,218.29,7.19]
[1757426402633,0.14,218.44,218.29,7.19]
[1757426402839,0.14,218.44,218.32,7.19]
[1757426403033,0.14,218.47,218.32,7.19]
[1757426403236,0.14,218.44,218.32,7.19]
[1757426404640,3.96554636,218.49,218.35,7.19]
[1757426405339,0.14,218.49,218.35,7.19]
[1757426406239,3.82554636,218.47,218.35,7.19]
[1757426406444,3.96554636,218.49,218.35,7.19]
[1757426406932,0.14,218.48,218.35,7.19]
[1757426407540,3.82554636,218.46,218.35,7.19]
[1757426407744,0.14,218.45,218.35,7.19]
[1757426409544,3.82554636,218.43,218.3,22.61]
[1757426409743,0.14,218.44,218.31,7.19]
[1757426409943,0.14,218.44,218.3,15.42]
[1757426409944,3.82554636,218.47,218.33,7.19]
[1757426410144,0.14,218.46,218.33,7.19]
[1757426410648,0.14,218.43,218.33,7.19]
[1757426410842,3.96554636,218.47,218.33,7.19]
[1757426411049,0.14,218.52,218.36,7.19]
[1757426411248,3.82554636,218.55,218.39,7.19]
[1757426411449,3.96554636,218.57,218.41,3.82554636]
[1757426411649,0.14,218.57,218.42,7.19]
[1757426412853,3.96554636,218.57,218.42,7.19]
[1757426413748,0.14,218.56,218.42,7.19]
[1757426413950,3.82554636,218.54,218.42,7.19]
[1757426414144,3.82554636,218.66,218.41,7.2]
[1757426414348,3.96554636,218.56,218.41,7.2]
[1757426414550,3.82554636,218.53,218.41,7.2]
[1757426414853,0.14,218.56,218.41,7.2]
[1757426415356,3.96554636,218.56,218.41,7.2]
[1757426416254,3.82554636,218.53,218.41,7.2]
[1757426416454,0.14,218.52,218.41,7.2]
[1757426416657,3.82554636,218.55,218.41,7.2]
[1757426416855,3.96554636,218.57,218.41,7.2]
[1757426417055,3.82554636,218.57,218.41,7.2]
[1757426417254,0.14,218.56,218.41,7.2]
[1757426417855,0.14,218.56,218.43,7.2]
[1757426418454,3.82554636,218.54,218.43,7.2]
[1757426419055,0.14,218.53,218.43,7.2]
[1757426419257,3.96554636,218.56,218.43,7.2]
[1757426419452,0.14,218.56,218.43,7.2]
[1757426419852,0.14,218.56,218.43,11.02554636]
[1757426420056,0.14,218.56,218.43,3.82554636]
[1757426420256,0.14,218.56,218.44,7.2]
[1757426420559,0.14,218.59,218.44,7.2]
[1757426420754,0.14,218.56,218.44,7.2]